lending/lending_fUSD_20250224
["ID","MTS","AMOUNT","RATE_DAILY","PERIOD"]
[354242150,1740360650996,-500.0,0.0001652,2]
[354242151,1740360651005,-556.5,0.0001652,2]
[354242152,1740360651015,-500.0,0.0001652,2]
[354242153,1740360651024,-500.0,0.0001652,2]
[354242154,1740360651033,-1150.69,0.0001652,2]
[354242155,1740360651042,-500.0,0.0001652,2]
[354242156,1740360651051,-500.0,0.0001652,2]
[354242157,1740360651061,-817.78,0.0001652,2]
[354242158,1740360651071,-500.0,0.0001652,2]
[354242159,1740360651080,-500.0,0.0001652,2]
[354242160,1740360651091,-500.0,0.0001652,2]
[354242161,1740360651102,-500.0,0.0001652,2]
[354242162,1740360651112,-605.93,0.0001652,2]
[354242163,1740360651121,-500.0,0.0001652,2]
[354242164,1740360651131,-1164.59,0.0001652,2]
[354242165,1740360651141,-500.0,0.0001652,2]
[354242166,1740360651151,-500.0,0.0001652,2]
[354242167,1740360651160,-500.0,0.0001652,2]
[354242168,1740360651170,-541.01,0.0001652,2]
[354242169,1740360651179,-500.0,0.0001652,2]
[354242170,1740360651188,-1007.93,0.0001652,2]
[354242171,1740360651197,-572.52,0.0001652,2]
[354242172,1740360651207,-500.0,0.0001652,2]
[354242173,1740360651218,-738.8,0.0001652,2]
[354242174,1740360651227,-909.53,0.0001652,2]
[354242175,1740360651238,-500.0,0.0001652,2]
[354242176,1740360651247,-500.0,0.0001652,2]
[354242177,1740360651256,-500.0,0.0001652,2]
[354242178,1740360651265,-500.0,0.0001652,2]
[354242179,1740360651274,-910.56,0.0001652,2]
[354242180,1740360651283,-1395.54,0.0001652,2]
[354242181,1740360651293,-500.0,0.0001652,2]
[354242182,1740360651303,-500.0,0.0001652,2]
[354242183,1740360651312,-500.0,0.0001652,2]
[354242184,1740360651321,-500.0,0.0001652,2]
[354242185,1740360651330,-500.0,0.0001652,2]
[354242186,1740360651340,-500.0,0.0001652,2]
[354242187,1740360651349,-1370.76,0.0001652,2]
[354242188,1740360651359,-942.69,0.0001652,2]
[354242189,1740360651368,-533.26,0.0001652,2]
[354242190,1740360651378,-997.26,0.0001652,2]
[354242191,1740360651388,-609.82,0.0001652,2]
[354242192,1740360651398,-500.0,0.0001652,2]
[354242193,1740360651407,-684.32,0.0001652,2]
[354242194,1740360651417,-923.75,0.0001652,2]
[354242195,1740360651426,-500.0,0.0001652,2]
[354242196,1740360651435,-1200.63,0.0001652,2]
[354242197,1740360651445,-733.84,0.0001652,2]
[354242198,1740360651454,-500.0,0.0001652,2]
[354242199,1740360651464,-2259.85,0.0001652,2]
[354242200,1740360651473,-746.37,0.0001652,2]
[354242201,1740360651483,-500.0,0.0001652,2]
[354242202,1740360651494,-1460.79,0.0001652,2]
[354242203,1740360651504,-500.0,0.0001652,2]
[354242204,1740360651513,-1701.15,0.0001652,2]
[354242205,1740360651522,-544.51,0.0001652,2]
[354242206,1740360651532,-500.0,0.0001652,2]
[354242207,1740360651541,-500.0,0.0001652,2]
[354242208,1740360651550,-954.78,0.0001652,2]
[354242209,1740360651559,-500.0,0.0001652,2]
[354242210,1740360651568,-1533.63,0.0001652,2]
[354242211,1740360651578,-1183.33,0.0001652,2]
[354242212,1740360651587,-500.0,0.0001652,2]
[354242213,1740360651596,-500.0,0.0001652,2]
[354242214,1740360651605,-500.0,0.0001652,2]
[354242215,1740360651614,-799.83,0.0001652,2]
[354242216,1740360651623,-500.0,0.0001652,2]
[354242217,1740360651632,-1000.23,0.0001652,2]
[354242218,1740360651641,-775.58,0.0001652,2]
[354242219,1740360651651,-2718.26,0.0001652,2]
[354242220,1740360651660,-500.0,0.0001652,2]
[354242221,1740360651669,-4321.49,0.0001652,2]
[354242222,1740360651678,-809.15,0.0001652,2]
[354242223,1740360651687,-1206.62,0.0001652,2]
[354242224,1740360651696,-3474.32,0.0001652,2]
[354242225,1740360651706,-500.0,0.0001652,2]
[354242226,1740360651715,-2524.18,0.0001652,2]
[354242227,1740360651724,-697.55,0.0001652,2]
[354242228,1740360651733,-600.53,0.0001652,2]
[354242229,1740360651743,-693.09,0.0001652,2]
[354242230,1740360651752,-500.0,0.0001652,2]
[354242231,1740360651762,-1176.71,0.0001652,2]
[354242232,1740360651772,-500.0,0.0001652,2]
[354242233,1740360651781,-779.64,0.0001652,2]
[354242234,1740360651790,-2554.19,0.0001652,2]
[354242235,1740360651800,-500.0,0.0001652,2]
[354242236,1740360651813,-2933.14,0.0001652,2]
[354242237,1740360651822,-2259.01,0.0001652,2]
[354242238,1740360651831,-1070.6,0.0001652,2]
[354242239,1740360651841,-1523.52,0.0001652,2]
[354242240,1740360651851,-1956.56,0.0001652,2]
[354242241,1740360651861,-1249.57,0.0001652,2]
[354242242,1740360651870,-4732.85,0.0001652,2]
[354242243,1740360651880,-1868.69,0.0001652,2]
[354242244,1740360651890,-500.0,0.0001652,2]
[354242245,1740360651899,-569.94,0.0001652,2]
[354242246,1740360651908,-1110.02,0.0001652,2]
[354242247,1740360651917,-678.88,0.0001652,2]
[354242248,1740360651926,-1425.21,0.0001652,2]
[354242249,1740360651936,-1422.7,0.0001652,2]
[354242250,1740360651945,-1398.77,0.0001652,2]
[354242251,1740360651954,-1744.28,0.0001652,2]
[354242252,1740360651963,-2123.95,0.0001652,2]
[354242253,1740360651973,-1541.47,0.0001652,2]
[354242254,1740360651982,-3274.06,0.0001652,2]
[354242255,1740360651992,-2266.32,0.0001652,2]
[354242256,1740360652002,-2268.34,0.0001652,2]
[354242257,1740360652011,-6033.67,0.0001652,2]
[354242258,1740360652020,-762.23,0.0001652,2]
[354242259,1740360652029,-955.0,0.0001652,2]
[354242260,1740360652039,-765.43,0.0001652,2]
[354242261,1740360652048,-2741.47,0.0001652,2]
[354242262,1740360652057,-712.04,0.0001652,2]
[354242263,1740360652067,-2489.76,0.0001652,2]
[354242264,1740360652076,-1105.89,0.0001652,2]
[354242265,1740360652086,-1317.22,0.0001652,2]
[354242266,1740360652095,-1422.42,0.0001652,2]
[354242267,1740360652104,-608.41,0.0001652,2]
[354242268,1740360652114,-500.0,0.0001652,2]
[354242269,1740360652123,-2315.49,0.0001652,2]
[354242270,1740360652132,-1746.43,0.0001652,2]
[354242271,1740360652142,-2010.53,0.0001652,2]
[354242272,1740360652152,-1018.68,0.0001652,2]
[354242273,1740360652161,-500.0,0.0001652,2]
[354242274,1740360652171,-658.95,0.0001652,2]
[354242275,1740360652180,-2043.06,0.0001652,2]
[354242276,1740360652189,-793.04,0.0001652,2]
[354242277,1740360652199,-500.0,0.0001652,2]
[354242278,1740360652208,-1851.8,0.0001652,2]
[354242279,1740360652217,-500.0,0.0001652,2]
[354242280,1740360652227,-500.0,0.0001652,2]
[354242281,1740360652238,-899.47,0.0001652,2]
[354242282,1740360652247,-1211.97,0.0001652,2]
[354242283,1740360652256,-500.0,0.0001652,2]
[354242284,1740360652266,-2340.51,0.0001652,2]
[354242285,1740360652275,-500.0,0.0001652,2]
[354242286,1740360652285,-1127.55,0.0001652,2]
[354242287,1740360652294,-5473.05,0.0001652,2]
[354242288,1740360652303,-2184.92,0.0001652,2]
[354242289,1740360652312,-1309.27,0.0001652,2]
[354242290,1740360652321,-2516.54,0.0001652,2]
[354242291,1740360652331,-789.29,0.0001652,2]
[354242292,1740360652340,-587.79,0.0001652,2]
[354242293,1740360652350,-1625.01,0.0001652,2]
[354242294,1740360652624,-2388.7,0.0001652,2]
[354242295,1740360652634,-1630.62,0.0001652,2]
[354242296,1740360652643,-1597.73,0.0001652,2]
[354242297,1740360652652,-1696.75,0.0001652,2]
[354242298,1740360652662,-500.0,0.0001652,2]
[354242299,1740360652671,-2202.61,0.0001652,2]
[354242300,1740360652680,-1686.75,0.0001652,2]
[354242301,1740360652689,-2890.71,0.0001652,2]
[354242302,1740360652699,-2125.49,0.0001652,2]
[354242303,1740360652708,-639.73377444,0.0001652,2]
[354242304,1740360652718,-2065.78,0.0001652,2]
[354242305,1740360652727,-1573.58,0.0001652,2]
[354242306,1740360652738,-577.2,0.0001652,2]
[354242307,1740360652747,-572.49,0.0001652,2]
[354242308,1740360652757,-500.0,0.0001652,2]
[354242309,1740360652767,-1203.22,0.0001652,2]
[354242310,1740360652776,-2032.17,0.0001652,2]
[354242311,1740360652785,-500.0,0.0001652,2]
[354242312,1740360652794,-2813.47,0.0001652,2]
[354242313,1740360652805,-2936.48,0.0001652,2]
[354242314,1740360652816,-500.0,0.0001652,2]
[354242315,1740360652825,-1443.22,0.0001652,2]
[354242316,1740360652834,-1608.76,0.0001652,2]
[354242317,1740360652843,-500.0,0.0001652,2]
[354242318,1740360652853,-935.79,0.0001652,2]
[354242319,1740360652862,-1907.61,0.0001652,2]
[354242320,1740360652871,-619.15,0.0001652,2]
[354242321,1740360652881,-3339.64,0.0001652,2]
[354242322,1740360652891,-1721.62,0.0001652,2]
[354242323,1740360652900,-500.0,0.0001652,2]
[354242324,1740360652909,-1025.47,0.0001652,2]
[354242325,1740360652919,-2230.09,0.0001652,2]
[354242326,1740360652928,-500.0,0.0001652,2]
[354242327,1740360652937,-5380.24,0.0001652,2]
[354242328,1740360652947,-205.32774182,0.0001652,2]
[354242329,1740360652956,-2534.97,0.0001652,2]
[354242330,1740360652966,-1228.35,0.0001652,2]
[354242331,1740360652976,-1054.66,0.0001652,2]
[354242332,1740360652985,-2925.99,0.0001652,2]
[354242333,1740360652996,-500.0,0.0001652,2]
[354242334,1740360653005,-500.0,0.0001652,2]
[354242335,1740360653015,-500.0,0.0001652,2]
[354242336,1740360653026,-1608.6,0.0001652,2]
[354242337,1740360653035,-500.0,0.0001652,2]
[354242338,1740360653044,-672.18,0.0001652,2]
[354242339,1740360653054,-731.8,0.0001652,2]
[354242340,1740360653064,-500.0,0.0001652,2]
[354242341,1740360653074,-1531.77,0.0001652,2]
[354242342,1740360653085,-826.02,0.0001652,2]
[354242343,1740360653095,-500.0,0.0001652,2]
[354242344,1740360653105,-500.0,0.0001652,2]
[354242345,1740360653115,-1515.69,0.0001652,2]
[354242346,1740360653125,-749.8,0.0001652,2]
[354242347,1740360653135,-2370.46,0.0001652,2]
[354242348,1740360653145,-755.94,0.0001652,2]
[354242349,1740360653154,-2766.86,0.0001652,2]
[354242350,1740360653164,-500.0,0.0001652,2]
[354242351,1740360653174,-500.0,0.0001652,2]
[354242352,1740360653184,-500.77,0.0001652,2]
[354242353,1740360653194,-1143.38,0.0001652,2]
[354242354,1740360653204,-500.0,0.0001652,2]
[354242355,1740360653214,-2113.0,0.0001652,2]
[354242356,1740360653224,-500.0,0.0001652,2]
[354242357,1740360653234,-1104.2,0.0001652,2]
[354242358,1740360653247,-1188.08,0.0001652,2]
[354242359,1740360653257,-500.0,0.0001652,2]
[354242360,1740360653267,-2079.33,0.0001652,2]
[354242361,1740360653276,-997.89,0.0001652,2]
[354242362,1740360653286,-1002.94,0.0001652,2]
[354242363,1740360653296,-2339.47,0.0001652,2]
[354242364,1740360653305,-814.83,0.0001652,2]
[354242365,1740360653314,-919.92,0.0001652,2]
[354242366,1740360653324,-796.77,0.0001652,2]
[354242367,1740360653334,-500.0,0.0001652,2]
[354242368,1740360653343,-500.0,0.0001652,2]
[354242369,1740360653353,-3033.8,0.0001652,2]
[354242370,1740360653363,-500.0,0.0001652,2]
[354242371,1740360653373,-2321.63,0.0001652,2]
[354242372,1740360653383,-2023.43,0.0001652,2]
[354242373,1740360653393,-1074.2,0.0001652,2]
[354242374,1740360653403,-1015.89,0.0001652,2]
[354242375,1740360653412,-500.0,0.0001652,2]
[354242376,1740360653422,-500.0,0.0001652,2]
[354242377,1740360653432,-500.0,0.0001652,2]
[354242378,1740360653442,-1358.37,0.0001652,2]
[354242379,1740360653451,-2763.29,0.0001652,2]
[354242380,1740360653461,-500.0,0.0001652,2]
[354242381,1740360653470,-685.88,0.0001652,2]
[354242382,1740360653480,-1095.49,0.0001652,2]
[354242383,1740360653490,-1763.32,0.0001652,2]
[354242384,1740360653499,-1207.21,0.0001652,2]
[354242385,1740360653509,-1068.8,0.0001652,2]
[354242386,1740360653519,-500.0,0.0001652,2]
[354242387,1740360653528,-683.38,0.0001652,2]
[354242388,1740360653538,-500.0,0.0001652,2]
[354242389,1740360653547,-500.0,0.0001652,2]
[354242390,1740360653557,-500.0,0.0001652,2]
[354242391,1740360653566,-2654.19,0.0001652,2]
[354242392,1740360653575,-500.0,0.0001652,2]
[354242393,1740360653584,-2751.9,0.0001652,2]
[354242394,1740360653593,-500.0,0.0001652,2]
[354242395,1740360653603,-2604.79,0.0001652,2]
[354242396,1740360653612,-2575.73,0.0001652,2]
[354242397,1740360653621,-500.0,0.0001652,2]
[354242398,1740360653632,-500.0,0.0001652,2]
[354242399,1740360653641,-500.0,0.0001652,2]
[354242400,1740360653651,-828.25,0.0001652,2]
[354242401,1740360653660,-7505.73,0.0001652,2]
[354242402,1740360653669,-500.0,0.0001652,2]
[354242403,1740360653679,-500.0,0.0001652,2]
[354242404,1740360653688,-500.0,0.0001652,2]
[354242405,1740360653698,-824.77,0.0001652,2]
[354242406,1740360653707,-697.99,0.0001652,2]
[354242407,1740360653717,-500.0,0.0001652,2]
[354242408,1740360653726,-806.5,0.0001652,2]
[354242409,1740360653735,-2138.49,0.0001652,2]
[354242410,1740360653746,-500.0,0.0001652,2]
[354242411,1740360653755,-500.0,0.0001652,2]
[354242412,1740360653764,-500.0,0.0001652,2]
[354242413,1740360653773,-150.0,0.00016526,2]
[354242414,1740360653783,-150.0,0.00016529,2]
[354242415,1740360653792,-674.13,0.00016541,7]
[354242416,1740360653801,-674.13,0.00016541,7]
[354242417,1740360653814,-349.43267624,0.00016548,2]
[354242418,1740360653823,-500.0,0.00016551,2]
[354242419,1740360653833,-1514.0,0.00016557,2]
[354242420,1740360653842,-150.0,0.00016558,2]
[354242421,1740360653852,-10906.2566374,0.00016589,2]
[354242422,1740360653861,-9490.4984074,0.00016589,2]
[354242423,1740360653871,-13860.5451683,0.00016589,2]
[354242424,1740360653881,-12029.7813038,0.00016589,2]
[354242425,1740360653891,-187.728683,0.00016591,2]
[354242426,1740360653901,-2186.5189035,0.00016591,2]
[354242427,1740360653910,-8310.7858568,0.00016591,2]
[354242428,1740360653919,-500.0,0.00016592,2]
[354242429,1740360653928,-2000.0,0.00016592,2]
[354242430,1740360653937,-500.0,0.00016592,2]
[354242431,1740360653946,-200.0,0.00016592,2]
[354242432,1740360653954,-300.0,0.00016599,2]
[354242433,1740360653962,-652.7,0.00016599,2]
[354242434,1740360653971,-999.0,0.00016599,2]
[354242435,1740360653980,-108536.92269697,0.000166,3]
[354242438,1740361106155,242.51,8.767e-05,2]
[354242439,1740361186750,158.39386481,8.723e-05,2]
[354242440,1740361624812,-427.55,0.0001,2]
[354242444,1740361831991,-575.10458265,0.00010858,2]
[354242445,1740361832055,-115.77920913,0.00010858,2]
[354242446,1740361832065,-690.88379177,0.00010941,2]
[354242447,1740361832074,-159.7969991,0.00010958,2]
[354242448,1740361832086,-120.7871519,0.00010958,2]
[354242449,1740361832095,-213.901867,0.00010958,2]
[354242450,1740361832105,-151.203322,0.00010958,2]
[354242451,1740361832114,-155.365745,0.00010958,2]
[354242452,1740361832123,-182.107957,0.00010958,2]
[354242453,1740361832133,-156.43409,0.00010958,2]
[354242454,1740361832142,-150.336923,0.00010958,2]
[354242455,1740361832151,-160.33153,0.00010958,2]
[354242456,1740361832162,-150.0,0.00010991,2]
[354242457,1740361832174,-280.584151,0.00011041,2]
[354242458,1740361832183,-213.901867,0.00011041,2]
[354242459,1740361832193,-280.584151,0.00011123,2]
[354242460,1740361832203,-213.901867,0.00011123,2]
[354242461,1740361832212,-151.203322,0.00011123,2]
[354242462,1740361832222,-280.584151,0.00011205,2]
[354242463,1740361832233,-213.901867,0.00011205,2]
[354242464,1740361832243,-155.365745,0.00011205,2]
[354242465,1740361832253,-280.584151,0.00011287,2]
[354242466,1740361832263,-213.901867,0.00011287,2]
[354242467,1740361832272,-280.584151,0.00011369,2]
[354242468,1740361832281,-213.901867,0.00011369,2]
[354242469,1740361832290,-151.203322,0.00011369,2]
[354242470,1740361832299,-150.0,0.00011944,2]
[354242471,1740361832309,-150.0,0.00012054,2]
[354242472,1740361832318,-1023.44,0.00013579,2]
[354242474,1740361832327,-200.39,0.00013699,2]
[354242476,1740361832336,-5386.0,0.000138,5]
[354242478,1740361832345,-1060.0,0.0001415,2]
[354242480,1740361832354,-475.07433311,0.00014408,2]
[354242483,1740361832370,-718.78087629,0.00014408,2]
[354242485,1740361832383,-117.4847906,0.00014408,2]
[354242487,1740361832392,-7668.55926725,0.00014601,2]
[354242489,1740361832403,-531.053597,0.00014601,2]
[354242491,1740361832415,-24010.36713575,0.00014601,2]
[354242493,1740361832424,-1128.63,0.00014601,2]
[354242495,1740361832433,-444.66,0.00014754,2]
[354242497,1740361832443,-2725.25,0.0001481,2]
[354242499,1740361832452,-1066.82377857,0.00014858,2]
[354242501,1740361832461,-3711.45,0.00014886,2]
[354242504,1740361832471,-500.0,0.00014916,2]
[354242506,1740361832482,-158.49498408,0.00014918,2]
[354242508,1740361832491,-152.47288759,0.00014918,2]
[354242510,1740361832500,-154.20705485,0.00014918,2]
[354242513,1740361832509,-152.52594753,0.00014918,2]
[354242514,1740361832518,-200.0,0.00014948,2]
[354242516,1740361832527,-104.60098723,0.00015048,2]
[354242582,1740361837852,-895.39901277,0.00015048,2]
[354242583,1740361837863,-401.02478561,0.00015139,2]
[354242584,1740361837874,-472.25521439,0.00015139,2]
[354242585,1740361837883,-547.68361239,0.00015164,2]
[354242586,1740361837894,-1025.93715228,0.00015164,2]
[354242587,1740361837905,-426.37923533,0.00015164,2]
[354242588,1740361837914,-1070.96908913,0.00015173,2]
[354242589,1740361837923,-8767.94175552,0.00015174,2]
[354242590,1740361837942,-4723.2674176,0.00015174,2]
[354242591,1740361837953,-353.01173433,0.00015174,2]
[354242592,1740361837995,-3578.24173315,0.00015174,2]
[354242593,1740361838063,-300.32,0.00015174,2]
[354242594,1740361838073,-5444.29669404,0.00015174,2]
[354242595,1740361838084,-732.92066536,0.00015174,2]
[354242596,1740361838093,-162.38,0.00015309,2]
[354242597,1740361838102,-78.86140907,0.00015334,2]
[354242804,1740361839894,-818.62859093,0.00015334,2]
[354242806,1740361839904,-200.0,0.00015334,2]
[354242808,1740361839913,-293.71,0.0001542,2]
[354242810,1740361839921,-176.47,0.00015426,2]
[354242812,1740361839930,-242.51,0.00015516,2]
[354242814,1740361839939,-250.0,0.00015519,2]
[354242816,1740361839948,-1472.01,0.00015597,2]
[354242818,1740361839957,-1023.44,0.00015843,2]
[354242820,1740361839965,-507.29,0.00016267,7]
[354242822,1740361839974,-507.29,0.00016267,7]
[354242824,1740361839983,-507.29,0.00016267,7]
[354242826,1740361839993,-507.29,0.00016267,7]
[354242828,1740361840001,-192.1154816,0.00016269,2]
[354242830,1740361840010,-172.38886113,0.00016338,2]
[354242832,1740361840019,-316.8407695,0.00016338,2]
[354242834,1740361840028,-5036.9362,0.00016338,2]
[354242836,1740361840037,-1000.45,0.00016387,2]
[354242838,1740361840046,-992.2,0.00016387,2]
[354242840,1740361840055,-986.19,0.00016394,2]
[354242842,1740361840065,-984.53,0.00016402,2]
[354242844,1740361840073,-150.17201952,0.00016406,4]
[354242846,1740361840082,-1009.93,0.00016412,2]
[354242848,1740361840091,-172.38886113,0.00016419,2]
[354242850,1740361840099,-186.7114979,0.0001642,2]
[354242852,1740361840108,-293.01024995,0.00016424,2]
[354242857,1740361840150,-713.74975005,0.00016424,2]
[354242859,1740361840160,-1212.97491222,0.00016428,2]
[354242861,1740361840170,-302.6,0.00016428,2]
[354242863,1740361840181,-3950.84868,0.0001643,2]
[354242865,1740361840189,-500.0,0.00016437,2]
[354242867,1740361840199,-187.93939699,0.00016437,2]
[354242869,1740361840207,-582.07036391,0.00016437,2]
[354242871,1740361840217,-280.584151,0.00016438,2]
[354242873,1740361840226,-213.901867,0.00016438,2]
[354242875,1740361840237,-500.0,0.00016438,2]
[354242877,1740361840248,-500.0,0.00016438,2]
[354242879,1740361840259,-1000.0,0.00016438,2]
[354242881,1740361840268,-691.28,0.00016438,2]
[354242883,1740361840277,-500.0,0.00016438,2]
[354242886,1740361840287,-500.0,0.00016438,2]
[354242888,1740361840296,-500.0,0.00016438,2]
[354242889,1740361840306,-242.90856268,0.00016438,2]
[354242891,1740361840315,-592.91001085,0.00016438,2]
[354242893,1740361840324,-678.64,0.00016438,2]
[354242895,1740361840334,-545.27853137,0.00016438,2]
[354242897,1740361840343,-500.0,0.00016438,2]
[354242899,1740361840352,-500.0,0.00016438,2]
[354242901,1740361840362,-500.0,0.00016438,2]
[354242903,1740361840371,-500.0,0.00016438,2]
[354242905,1740361840381,-504.01364617,0.00016438,2]
[354242907,1740361840390,-500.0,0.00016438,2]
[354242908,1740361840398,-500.0,0.00016438,2]
[354242909,1740361840407,-617.49,0.00016438,2]
[354242910,1740361840416,-504.96190364,0.00016438,2]
[354242911,1740361840425,-500.0,0.00016438,2]
[354242912,1740361840434,-500.0,0.00016438,2]
[354242913,1740361840443,-500.0,0.00016438,2]
[354242914,1740361840452,-502.63823818,0.00016438,2]
[354242915,1740361840461,-513.5,0.00016438,2]
[354242916,1740361840469,-500.0,0.00016438,2]
[354242917,1740361840478,-500.0,0.00016438,2]
[354242919,1740361840489,-500.0,0.00016438,2]
[354242921,1740361840498,-500.0,0.00016438,2]
[354242923,1740361840508,-500.0,0.00016438,2]
[354242926,1740361840517,-378.69645268,0.00016438,2]
[354242927,1740361840527,-500.0,0.00016438,2]
[354242929,1740361840536,-576.92,0.00016438,2]
[354242931,1740361840545,-599.93,0.00016438,2]
[354242933,1740361840554,-545.0,0.00016438,2]
[354242935,1740361840563,-500.0,0.00016438,2]
[354242937,1740361840572,-648.59,0.00016438,2]
[354242939,1740361840582,-500.0,0.00016438,2]
[354242941,1740361840591,-500.0,0.00016438,2]
[354242943,1740361840601,-554.82,0.00016438,2]
[354242945,1740361840610,-500.0,0.00016438,2]
[354242948,1740361840620,-500.0,0.00016438,2]
[354242950,1740361840630,-500.0,0.00016438,2]
[354242953,1740361840640,-500.0,0.00016438,2]
[354242954,1740361840649,-500.0,0.00016438,2]
[354242956,1740361840658,-500.0,0.00016438,2]
[354242958,1740361840667,-500.0,0.00016438,2]
[354242960,1740361840676,-500.0,0.00016438,2]
[354242962,1740361840685,-500.0,0.00016438,2]
[354242964,1740361840694,-500.0,0.00016438,2]
[354242966,1740361840703,-500.0,0.00016438,2]
[354242968,1740361840711,-500.0,0.00016438,2]
[354242970,1740361840720,-1981.11,0.00016438,2]
[354242972,1740361840729,-500.0,0.00016438,2]
[354242974,1740361840739,-1266.22,0.00016438,2]
[354242976,1740361840748,-500.0,0.00016438,2]
[354242978,1740361840757,-1836.01,0.00016438,2]
[354242980,1740361840766,-559.5,0.00016438,2]
[354242982,1740361840775,-1432.79,0.00016438,2]
[354242984,1740361840784,-500.0,0.00016438,2]
[354242986,1740361840793,-500.0,0.00016438,2]
[354242988,1740361840802,-504.22097419,0.00016438,2]
[354242990,1740361840811,-501.49548944,0.00016438,2]
[354242992,1740361840819,-500.0,0.00016438,2]
[354242994,1740361840828,-599.83604796,0.00016438,2]
[354242996,1740361840838,-500.90931553,0.00016438,2]
[354242998,1740361840847,-500.0,0.00016438,2]
[354243000,1740361840856,-500.0,0.00016438,2]
[354243002,1740361840865,-830.69,0.00016438,2]
[354243004,1740361840874,-726.27,0.00016438,2]
[354243006,1740361840883,-1348.23,0.00016438,2]
[354243008,1740361840893,-500.0,0.00016438,2]
[354243009,1740361840902,-500.0,0.00016438,2]
[354243011,1740361840911,-501.43587194,0.00016438,2]
[354243013,1740361840919,-503.80596586,0.00016438,2]
[354243015,1740361840928,-502.5190562,0.00016438,2]
[354243017,1740361840938,-500.0,0.00016438,2]
[354243019,1740361840947,-504.21761119,0.00016438,2]
[354243021,1740361840956,-501.21532498,0.00016438,2]
[354243023,1740361840965,-219.28146774,0.00016438,2]
[354243025,1740361840974,-500.0,0.00016438,2]
[354243027,1740361840983,-844.0,0.00016438,2]
[354243029,1740361840993,-871.94,0.00016438,2]
[354243031,1740361841002,-500.0,0.00016438,2]
[354243033,1740361841011,-506.66443127,0.00016438,2]
[354243035,1740361841021,-501.2755538,0.00016438,2]
[354243037,1740361841029,-563.42459655,0.00016438,2]
[354243039,1740361841039,-1176.3,0.00016438,2]
[354243041,1740361841048,-505.20185573,0.00016438,2]
[354243043,1740361841057,-502.20013203,0.00016438,2]
[354243045,1740361841066,-501.2606264,0.00016438,2]
[354243047,1740361841076,-500.0,0.00016438,2]
[354243049,1740361841085,-919.28,0.00016438,2]
[354243051,1740361841094,-504.85295164,0.00016438,2]
[354243053,1740361841103,-667.22,0.00016438,2]
[354243055,1740361841111,-501.45918452,0.00016438,2]
[354243057,1740361841120,-587.14146952,0.00016438,2]
[354243059,1740361841129,-502.73214796,0.00016438,2]
[354243060,1740361841139,-502.86456637,0.00016438,2]
[354243062,1740361841148,-500.0,0.00016438,2]
[354243064,1740361841157,-501.41084369,0.00016438,2]
[354243066,1740361841166,-1352.75,0.00016438,2]
[354243068,1740361841179,-500.0,0.00016438,2]
[354243070,1740361841188,-501.60808965,0.00016438,2]
[354243072,1740361841198,-963.15,0.00016438,2]
[354243074,1740361841207,-500.88442993,0.00016438,2]
[354243076,1740361841217,-669.33,0.00016438,2]
[354243078,1740361841226,-830.77,0.00016438,2]
[354243080,1740361841235,-356.80866916,0.00016438,2]
[354243082,1740361841247,-502.11962465,0.00016438,2]
[354243084,1740361841255,-515.95,0.00016438,2]